Workbook

Sheet Лист1
A1: Школа | C1: МОБУ СОШ с. Копей-Кубово | F1: Утвердил: | G1: должность | H1: Директор школы
A2: Типовое примерное меню приготавливаемых блюд | G2: фамилия | H2: Габдрахманова Г.Ш.
A3: Возрастная категория | E3: 7-11 лет | G3: дата | H3: 2025-08-30
A5: Неделя | B5: День недели | C5: Прием пищи | D5: Раздел меню | E5: Блюда | F5: Вес блюда, г | G5: Белки | H5: Жиры | I5: Углеводы | J5: Калорийность | K5: № рецептуры | L5: Цена
A6: 1 | B6: 1 | C6: Завтрак | D6: гор.блюдо | E6: каша Артек молочная вязкая | F6: 180/5 | G6: 4.6 | H6: 9.96 | I6: 32.25 | J6: 237.47 | K6: 181.39 | L6: 36.56
D7: гор.напиток | E7: кисель фруктово-ягодный | F7: 200 | G7: 0.2 | H7: 0 | I7: 3.9 | J7: 16 | K7: 299 | L7: 6.4
D8: хлеб | E8: хлеб Колосок пшеничный с витаминами | F8: 50 | G8: 4 | H8: 0.5 | I8: 27.5 | J8: 130 | K8: 420.06 | L8: 5.7
D9: хлеб | E9: сыр (порциями) | F9: 10 | G9: 5.26 | H9: 5.32 | I9: 0 | J9: 70 | K9: 27.01 | L9: 7.43
D10: сладкое | E10: кисломолочный продукт для детского питания | F10: 100 | G10: 3.2 | H10: 3.2 | I10: 4.5 | J10: 62 | K10: 476.01 | L10: 15
D11: итого | G11: =SUM(G6:G10) -> 17.26 | H11: =SUM(H6:H10) -> 18.98 | I11: =SUM(I6:I10) -> 68.15 | J11: =SUM(J6:J10) -> 515.47 | L11: 71.09
A12: =A6 -> 1 | B12: =B6 -> 1 | C12: Обед
D13: 1 блюдо
D21: итого
A22: =A6 -> 1 | B22: =B6 -> 1 | C22: Итого за день:
A23: 1 | B23: 2 | C23: Завтрак | D23: гор.блюдо | E23: каша гречневая рассыпчатая | F23: 150 | G23: 10.4 | H23: 6.8 | I23: 45.4 | J23: 288 | K23: 649.09 | L23: 11.34
D24: гор.блюдо | E24: котлеты из говядины (п/ф) | F24: 90 | G24: 9.56 | H24: 12.96 | I24: 9.96 | J24: 196 | K24: 78.03 | L24: 42.16
D25: гор.напиток | E25: чай с молоком | F25: 200 | G25: 1.6 | H25: 1.8 | I25: 12.4 | J25: 69 | K25: 272 | L25: 4.46
D26: хлеб | E26: хлеб Колосок пшеничный с витаминами | F26: 50 | G26: 4 | H26: 0.5 | I26: 27.5 | J26: 130 | K26: 420.06 | L26: 5.7
D27: хлеб | E27: сыр (порциями) | F27: 10 | G27: 0.06 | H27: 0.6 | I27: 4.5 | J27: 62 | K27: 476 | L27: 7.43
D28: итого | G28: 28.76 | H28: 25.26 | I28: 99.76 | J28: 745 | L28: 71.09
A29: =A23 -> 1 | B29: =B23 -> 2 | C29: Обед
D38: итого
A39: =A23 -> 1 | B39: =B23 -> 2 | C39: Итого за день:
A40: 1 | B40: 3 | C40: Завтрак | D40: гор.блюдо | E40: куриное филе тушенное с овощами | F40: 90 | G40: 11.35 | H40: 14.6 | I40: 1.87 | J40: 185 | K40: 445.3 | L40: 32.06
D41: гор.блюдо | E41: макаронные изделия отварные с маслом | F41: 160 | G41: 5.82 | H41: 4.31 | I41: 37.08 | J41: 210.5 | K41: 211.05 | L41: 15.72
D42: гор.напиток | E42: кофейный напиток на молоке | F42: 200 | G42: 2.9 | H42: 2.8 | I42: 14.9 | J42: 94 | K42: 275 | L42: 17.61
D43: хлеб | E43: хлеб Колосок пшеничный с витаминами | F43: 50 | G43: 4 | H43: 0.5 | I43: 27.5 | J43: 130 | K43: 420.06 | L43: 5.70
D45: итого | G45: 24.07 | H45: 22.24 | I45: 81.35 | J45: 619.5 | L45: 71.09
A46: =A40 -> 1 | B46: =B40 -> 3 | C46: Обед
A56: =A40 -> 1 | B56: =B40 -> 3 | C56: Итого за день:
A57: 1 | B57: 4 | C57: Завтрак | D57: гор.блюдо | E57: плов из мяса птицы (филе) | F57: 150 | G57: 15.21 | H57: 16.65 | I57: 37.28 | J57: 359.21 | K57: 227.7 | L57: 37.29
D58: гор.напиток | E58: чай с сахаром | F58: 200 | G58: 0 | H58: 0 | I58: 9.98 | J58: 39.9 | K58: 283 | L58: 5.10
D59: хлеб | E59: хлеб Колосок пшеничный с витаминами | F59: 50 | G59: 4 | H59: 0.5 | I59: 27.5 | J59: 130 | K59: 420.06 | L59: 5.70
D60: фрукты | E60: яблоко | F60: 100 | G60: 0.5 | H60: 0.5 | I60: 12.25 | J60: 58.75 | K60: 38.59 | L60: 23.00
D62: итого | G62: =SUM(G57:G61) -> 19.71 | H62: =SUM(H57:H61) -> 17.65 | I62: =SUM(I57:I61) -> 87.01 | J62: =SUM(J57:J61) -> 587.86 | K62: =SUM(K57:K61) -> 969.35 | L62: 71.09
A63: =A57 -> 1 | B63: =B57 -> 4 | C63: Обед
D72: итого
A73: =A57 -> 1 | B73: =B57 -> 4 | C73: Итого за день:
A74: 1 | B74: 5 | C74: Завтрак | D74: гор.блюдо | E74: котлеты из говядины (п/ф) | F74: 90 | G74: 9.72 | H74: 6.84 | I74: 8.28 | J74: 13 | K74: 83 | L74: 33.17
D75: гор.блюдо | E75: рис припущенный | F75: 150 | G75: 3.5 | H75: 5.42 | I75: 23.6 | J75: 157.53 | K75: 138.21 | L75: 16.29
D76: гор.напиток | E76: кисель фруктово-ягодный | F76: 200 | G76: 0.2 | H76: 0 | I76: 3.9 | J76: 16 | L76: 6.4
D77: хлеб | E77: хлеб Колосок пшеничный с витаминами | F77: 50 | G77: 4 | H77: 0.5 | I77: 27.5 | J77: 130 | K77: 420.06 | L77: 5.7
D78: хлеб | E78: масло сливочное порционное | F78: 10 | G78: 0.06 | H78: 5.8 | I78: 0.1 | J78: 52.88 | K78: 401.08 | L78: 9.53
D79: итого | G79: 17.49 | H79: 18.56 | I79: 63.34 | J79: 490.41 | L79: 71.09
A80: =A74 -> 1 | B80: =B74 -> 5 | C80: Обед
D89: итого
A90: =A74 -> 1 | B90: =B74 -> 5 | C90: Итого за день:
A91: 2 | B91: 1 | C91: Завтрак | D91: гор.блюдо | E91: макароны отварные с тушеными овощами | F91: 180 | G91: 9.43 | H91: 12.55 | I91: 33.06 | J91: 283.91 | K91: 211.56 | L91: 21.7
D92: гор.напиток | E92: кофейный напиток на молоке | F92: 200 | G92: 2.9 | H92: 2.8 | I92: 14.9 | J92: 94 | K92: 275 | L92: 17.61
D93: хлеб | E93: хлеб Колосок пшеничный с витаминами | F93: 50 | G93: 4 | H93: 0.5 | I93: 27.5 | J93: 130 | K93: 420.06 | L93: 5.7
D94: сладкое | E94: сок | F94: 200 | G94: 0.4 | H94: 0.4 | I94: 9.8 | J94: 47 | K94: 401.08 | L94: 16.5
D95: хлеб | E95: масло сливочное порционное | F95: 10 | G95: 0.06 | H95: 5.8 | I95: 0.1 | J95: 52.88 | K95: 401.08 | L95: 9.58
D97: итого | G97: 16.79 | H97: 22.05 | I97: 85.36 | J97: 607.79 | L97: 71.09
A98: =A91 -> 2 | B98: =B91 -> 1 | C98: Обед
D107: итого
A108: =A91 -> 2 | B108: =B91 -> 1 | C108: Итого за день:
A109: 2 | B109: 2 | C109: Завтрак | D109: гор.блюдо | E109: котлеты куриные (п/ф) | F109: 90 | G109: 12.08 | H109: 6.18 | I109: 10.15 | J109: 145 | K109: 136 | L109: 36.18
D110: гор.блюдо | E110: каша гречневая рассыпчатая | F110: 150 | G110: 4.13 | H110: 3.97 | I110: 18.61 | J110: 126.54 | K110: 175.11 | L110: 15.38
D111: гор.напиток | E111: кисель фруктово-ягодный | F111: 200 | G111: 0.2 | H111: 0 | I111: 3.9 | J111: 16 | L111: 6.4
D112: хлеб | E112: хлеб Колосок пшеничный с витаминами | F112: 50 | G112: 4 | H112: 0.5 | I112: 27.5 | J112: 130 | K112: 420.06 | L112: 5.7
D113: хлеб | E113: сыр (порциями) | F113: 10 | G113: 3 | H113: 3 | I113: 0 | J113: 36 | K113: 27.5 | L113: 7.43
D114: итого | G114: 22.81 | H114: 13.75 | I114: 59.16 | J114: 453.54 | L114: 71.09
A115: =A109 -> 2 | B115: =B109 -> 2 | C115: Обед
D124: итого
A125: =A109 -> 2 | B125: =B109 -> 2 | C125: Итого за день:
A126: 2 | B126: 3 | C126: Завтрак | D126: гор.блюдо | E126: плов из мяса курицы (филе) | F126: 150 | G126: 15.21 | H126: 16.65 | I126: 37.28 | J126: 359.21 | K126: 131.8 | L126: 37.29
D127: гор.напиток | E127: чай с молоком | F127: 200 | G127: 2.1 | H127: 2 | I127: 14.9 | J127: 69 | K127: 275 | L127: 5.1
D128: хлеб | E128: хлеб Колосок пшеничный с витаминами | F128: 50 | G128: 4 | H128: 0.5 | I128: 27.5 | J128: 130 | K128: 420.06 | L128: 5.7
D129: фрукты | E129: яблоко | F129: 100 | G129: 0.4 | H129: 0.4 | I129: 9.8 | J129: 47 | K129: 401.08 | L129: 23
D132: итого | G132: 21.71 | H132: 19.55 | I132: 89.48 | J132: 605.21 | L132: 71.09
A133: =A126 -> 2 | B133: =B126 -> 3 | C133: Обед
D142: итого
A143: =A126 -> 2 | B143: =B126 -> 3 | C143: Итого за день:
A144: 2 | B144: 4 | C144: Завтрак | D144: гор.блюдо | E144: котлеты из говядины (п/ф) | F144: 90 | G144: 20.1 | H144: 5.5 | I144: 6.6 | J144: 157 | K144: 78 | L144: 32.37
D145: гор.блюдо | E145: картофельное пюре | F145: 150 | G145: 3.5 | H145: 5.42 | I145: 23.6 | J145: 157.53 | L145: 12.38
D146: гор.напиток | E146: какао с молоком | F146: 200 | G146: 3.3 | H146: 2.5 | I146: 13.7 | J146: 88 | K146: 277 | L146: 13.21
D147: хлеб | E147: хлеб Колосок пшеничный с витаминами | F147: 50 | G147: 4 | H147: 0.5 | I147: 27.5 | J147: 130 | K147: 420.06 | L147: 5.7
D148: хлеб | E148: сыр (порциями) | F148: 10 | G148: 5.26 | H148: 5.32 | I148: 0 | J148: 70 | K148: 27.01 | L148: 7.43
G149: 32.74 | H149: 16.48 | I149: 65.86 | J149: 840.53 | L149: 71.09
D150: итого
A151: =A144 -> 2 | B151: =B144 -> 4 | C151: Обед
D160: итого
A161: =A144 -> 2 | B161: =B144 -> 4 | C161: Итого за день:
A162: 2 | B162: 5 | C162: Завтрак | D162: гор.блюдо | E162: каша молочная пшенная с маслом | F162: 150/5 | G162: 6.7 | H162: 7.59 | I162: 31.7 | J162: 224 | K162: 187 | L162: 34.46
D163: гор.напиток | E163: кисель фруктово-ягодный | F163: 200 | G163: 0.2 | H163: 0 | I163: 3.9 | J163: 16 | K163: 299 | L163: 6.4
D164: хлеб | E164: хлеб Колосок пшеничный с витаминами | F164: 50 | G164: 4 | H164: 0.5 | I164: 27.5 | J164: 130 | K164: 420.06 | L164: 5.7
D165: хлеб | E165: масло сливочное порционное | F165: 10 | G165: 0.06 | H165: 5.8 | I165: 0.1 | J165: 52.88 | K165: 401.08 | L165: 9.53
D166: сладкое | E166: кисломолочный продукт для детского питания | F166: 100 | G166: 3.2 | H166: 3.2 | I166: 4.5 | J166: 62 | K166: 476.01 | L166: 15
D168: итого | G168: =SUM(G162:G167) -> 14.16 | H168: =SUM(H162:H167) -> 17.09 | I168: =SUM(I162:I167) -> 67.7 | J168: =SUM(J162:J167) -> 484.88 | L168: 71.09
A169: =A162 -> 2 | B169: =B162 -> 5 | C169: Обед | D169: закуска
D178: итого
A179: =A162 -> 2 | B179: =B162 -> 5 | C179: Итого за день:
